{"text_format":"1","workbook":"xlsx","n_sheets":3,"sheets":["Сводн.","На печать","Материал"],"not_rendered":{"charts":0,"images":0,"macros":1,"external_links":0,"defined_names":2,"comments":0,"pivot_tables":0},"unopened":[],"bounds":{"document_bytes":16777216,"sheet_cells":100000,"rows_first":2000,"rows_last":500,"rows_between":2000,"halvings":0,"cell_chars":16384,"cell_head_chars":4096},"cells_cut":0,"cells_raw":0,"read":"whole","date_system":"1900"}

{"sheet":"Сводн.","index":0,"n_rows":590,"n_cols":6,"rows_kept":590,"cut":false,"hidden":false,"merged":[]}
[null,null,null,null,null,{"$f":"SUM(F5,F57,F109,F151,F203,F235,F267,F299,F351,F403,F434,F495,F528)","v":19183.5}]
[]
[]
[]
[null,"Демонтажные работы",null,null,"Итого:",{"$f":"SUM(F6:F55)","v":11658}]
[null,"Демонтаж ванны","шт",580,null,{"$f":"IF((E6*D6)=0,\"\",(E6*D6))","v":""}]
[null,"Демонтаж встроенных шкафов","шт",580,null,{"$f":"IF((E7*D7)=0,\"\",(E7*D7))","v":""}]
[null,"Демонтаж дверных блоков","шт",290,6,1740]
[null,"Демонтаж керамической плитки (пол, стены)","м.кв",87,null,""]
[null,"Демонтаж лепнины","шт",14.5,null,""]
[null,"Демонтаж оконных блоков","шт",580,null,""]
[null,"Демонтаж плинтуса","м.пог",14.5,null,""]
[null,"Демонтаж подвесного потолка","м.кв",58,6,348]
[null,"Демонтаж подоконников","шт",232,null,""]
[null,"Демонтаж пола армированного (сантехкабин)","шт",1740,null,""]
[null,"Демонтаж пола деревянного на лагах","м.кв",43.5,null,""]
[null,"Демонтаж пола из паркетной доски","м.кв",72.5,null,""]
[null,"Демонтаж пола из линолеума, ковролина","м.кв",49.3,null,""]
[null,"Демонтаж полотенцесушителя","шт",435,null,""]
[null,"Демонтаж радиаторов отопления","шт",435,6,2610]
[null,"Демонтаж сантехкабин (гипсолитовых)","шт",4350,null,""]
[null,"Демонтаж смесителей","шт",145,null,""]
[null,"Демонтаж стен (перегородок) из ацеида, гипсолита, ГКЛ","м.кв",188.5,null,""]
[null,"Демонтаж стен (перегородок) из дерева","м.кв",58,null,""]
[null,"Демонтаж стен (перегородок) из кирпича, шлакоблоков","м.кв",290,null,""]
[null,"Демонтаж стен (перегородок) из иных материалов","м.кв",116,null,""]
[null,"Демонтаж существующих ж/бетонных конструкций","м.куб",2320,null,""]
[null,"Демонтаж существующих кирпичных конструкций","м.куб",1160,6,6960]
[null,"Демонтаж труб водопроводных метеллических","соед.",116,null,""]
[null,"Демонтаж труб водопроводных/канализ. пластиковых","соед.",58,null,""]
[null,"Демонтаж труб чугунных","соед.",290,null,""]
[null,"Демонтаж унитаза/биде","шт",435,null,""]
[null,"Демонтаж умывальника","шт",290,null,""]
[null,"Демонтаж штукатурного покрытия","м.кв",87,null,""]
[null,"Очистка стен от обоев и покрытий на бумажной основе","м.кв",43.5,null,""]
[null,"Очистка стен от обоев на виниловой основе","м.кв",58,null,""]
[null,"Расчистка старой краски до 100% (стен)","м.кв",72.5,null,""]
[null,"Расчистка старой краски до 35% (стен)","м.кв",49.3,null,""]
[null,"Расчистка старой краски до 100% (потолка)","м.кв",87,null,""]
[null,"Расчистка старой краски до 35% (потолка)","м.кв",78.3,null,""]
[null,null,null,null,null,""]
[null,null,null,null,null,""]
[null,null,null,null,null,""]
[null,null,null,null,null,""]
[null,null,null,null,null,""]
[null,null,null,null,null,""]
[null,null,null,null,null,""]
[null,null,null,null,null,""]
[null,null,null,null,null,""]
[null,null,null,null,null,""]
[null,null,null,null,null,""]
[null,null,null,null,null,""]
[null,null,null,null,null,""]
[null,null,null,null,null,""]
[null,null,null,null,null,""]
[null,"============================================"]
[null,"Общестроительные работы",null,null,"Итого:",{"$f":"SUM(F58:F107)","v":72.5}]
[null,"Армирование стен штукатурной сеткой","м.кв",101.5,null,""]
[null,"Армирование стяжки пола","м.кв",72.5,null,""]
[null,"Гидроизоляция пола подвижно-пластичными материалами в 1 слой","м.кв",101.5,null,""]
[null,"Гидроизоляция пола рулонными материалами (2-слоя)","м.кв",188.5,null,""]
[null,"Гидроизоляция стен подвижно-пластичными материалами в 1 слой","м.кв",174,null,""]
[null,"Гидроизоляция внешних углов","м.пог",72.5,null,""]
[null,"Насечка поверхности стен и потолков","м.кв",72.5,null,""]
[null,"Облицовка стен ГКЛ (С-623) (1-слой)","м.кв",319,null,""]
[null,"Облицовка стен ГКЛ (С-623) (каждый последующий слой)","м.кв",58,null,""]
[null,"Пробивка проемов в \"мягких\"стенах","шт",1450,null,""]
[null,"Пробивка проемов в ж/б стенах (18 см)","шт",5800,null,""]
[null,"Пробивка проемов в кирпичных стенах (25 см)","шт",4350,null,""]
[null,"Расширение стандартного проема в ж/б стенах (18 см)","шт",3480,null,""]
[null,"Усиление проемов металлическим профилем","м.пог",3480,null,{"$f":"IF((E71*D71)=0,\"\",(E71*D71))","v":""}]
[null,"Устройство ниши в стене из кирпича (25-30 см)","м.кв",870,null,""]
[null,"Устройство перегородок в 1/2 кирпича","м.кв",406,null,""]
[null,"Устройство перегородок в 1 кирпич","м.кв",522,null,""]
[null,"Устройство перегородок из шлакоблоков, пазогребневых блоков","м.кв",348,null,""]
[null,"Устройство перегородок из ГКЛ (В) Тиги-Кнауф (С-111) (1-слой)","м.кв",406,null,""]
[null,"Устройство стен из ГКЛ (В) Тиги-Кнауф (С-611) на клею","м.кв",246.5,null,""]
[null,"Устройство стен из ГКЛ (В) Тиги-Кнауф (С-112) (2-слоя)","м.кв",464,null,""]
[null,"Устройство стяжки пола полимерцементной","м.кв",217.5,null,""]
[null,"Устройство стяжки пола до 50 мм цементно-песчаной","м.кв",290,null,""]
[null,"Устройство «сухого пола» Авангард-Кнауф (10 мм)","м.кв",348,null,""]
[null,"Устройство тепло звукоизоляции стен из ГКЛ","м.кв",72.5,1,72.5]
[null,"Штукатурка стен в/к","м.кв",246.5,null,""]
[null,"Штукатурка потолка в/к","м.кв",290,null,""]
[null,"Штукатурка стен (под плитку)","м.кв",232,null,""]
[null,"Штукатурка проемов, откосов","м.кв",232,null,""]
[null,null,null,null,null,""]
[null,null,null,null,null,""]
[null,null,null,null,null,""]
[null,null,null,null,null,""]
[null,null,null,null,null,""]
[null,null,null,null,null,""]
[null,null,null,null,null,""]
[null,null,null,null,null,""]
[null,null,null,null,null,""]
[null,null,null,null,null,""]
[null,null,null,null,null,""]
[null,null,null,null,null,""]
[null,null,null,null,null,""]
[null,null,null,null,null,""]
[null,null,null,null,null,""]
[null,null,null,null,null,""]
[null,null,null,null,null,""]
[null,null,null,null,null,""]
[null,null,null,null,null,""]
[null,null,null,null,null,""]
[null,null,null,null,null,""]
[null,"============================================"]
[null,"Отделочные работы - потолки",null,null,"Итого:",{"$f":"SUM(F110:F149)","v":261}]
[null,"Грунтовка потолка","м.кв",58,null,""]
[null,"Декоративная штукатурка","м.кв",536.5,null,""]
[null,"Монтаж структурного покрытия","м.кв",261,null,""]
[null,"Оклейка потолка сеткой \"Строби\"","м.кв",72.5,null,""]
[null,"Оклейка стыков \"серпянкой\"","м.пог",14.5,null,""]
[null,"Окраска потолка ВА","м.кв",130.5,null,""]
[null,"Отделка потолка стиропоровыми плитками","м.кв",130.5,null,""]
[null,"Расшивка, заделка трещин, рустов","м.пог",43.5,null,""]
[null,"Установка и шпатлевка потолочного плинтуса","м.пог",87,3,261]
[null,"Установка и шпатлевка потолочного розеток из гипса","шт",580,null,""]
[null,"Установка и шпатлевка потолочного розеток из полистирола","шт",290,null,""]
[null,"Устройство натяжного потолка","м.кв",1160,null,""]
[null,"Устройство подвесного потолка типа \"Армстронг\"","м.кв",217.5,null,""]
[null,"Устройство подвесного потолка типа \"Экофон\"","м.кв",261,null,""]
[null,"Устройство подвесного потолка из пластиковых панелей","м.кв",290,null,""]
[null,"Устройство подвесного потолка из ГКЛ (П-113)","м.кв",377,null,""]
[null,"Устройство реечных подвесных потолков","м.кв",246.5,null,""]
[null,"Устройство разноуровнего потолка из ГКЛ с прямолинейными элементами","м.кв",464,null,""]
[null,"Устройство разноуровнего потолка из ГКЛ с криволинейными элементами","м.кв",522,null,""]
[null,"Шпатлевка потолка (3 раза, включая финишную шпатлевку типа 'Шитрок')","м.кв",362.5,null,""]
[null,null,null,null,null,""]
[null,null,null,null,null,""]
[null,null,null,null,null,""]
[null,null,null,null,null,""]
[null,null,null,null,null,""]
[null,null,null,null,null,{"$f":"IF((E135*D135)=0,\"\",(E135*D135))","v":""}]
[null,null,null,null,null,""]
[null,null,null,null,null,""]
[null,null,null,null,null,""]
[null,null,null,null,null,""]
[null,null,null,null,null,""]
[null,null,null,null,null,""]
[null,null,null,null,null,""]
[null,null,null,null,null,""]
[null,null,null,null,null,""]
[null,null,null,null,null,""]
[null,null,null,null,null,""]
[null,null,null,null,null,""]
[null,null,null,null,null,""]
[null,null,null,null,null,""]
[null,"============================================"]
[null,"Отделочные работы - стены, перегородки",null,null,"Итого:",{"$f":"SUM(F152:F201)","v":1392}]
[null,"Возведение кирпичных стен в 1 кирпич","м.кв",580,null,""]
[null,"Возведение кирпичных стен в 1/2 кирпича","м.кв",435,null,""]
[null,"Возведение перегородки из ГКЛ","м.кв",435,null,""]
[null,"Грунтовка стен","м.кв",43.5,null,""]
[null,"Грунтовка откосов","м.пог",43.5,null,""]
[null,"Монтаж малярных уголков","м.пог",63.8,null,""]
[null,"Монтаж стеновых панелей (типа \"панелит\")","м.кв",290,null,""]
[null,"Нанесение жидких обоев","м.кв",232,null,""]
[null,"Обшивка стен вагонкой","м.кв",319,null,""]
[null,"Обшивка стен пластиковыми панелями","м.кв",261,null,""]
[null,"Оклейка стен сеткой \"Строби\"","м.кв",58,null,""]
[null,"Оклейка стен обоями (без подбора рисунка)","м.кв",188.5,null,""]
[null,"Оклейка стен обоями (с подбором рисунка)","м.кв",304.5,null,""]
[null,"Оклейка стен обоями под окраску","м.кв",139.19999999999999,null,""]
[null,"Оклейка стыков стен малярной лентой","м.пог",58,null,""]
[null,"Окраска стен по обоям ВА за 2 раза","м.кв",101.5,null,""]
[null,"Окраска стен ВА за 2 раза","м.пог",130.5,null,""]
[null,"Окраска откосов","м.пог",92.8,null,""]
[null,"Окраска радиаторов отопления","шт",348,4,1392]
[null,"Окраска подоконников","м.пог",87,null,""]
[null,"Установка вентиляционных решеток","шт",406,null,""]
[null,"Устройство вентиляционного короба","м.пог",435,null,""]
[null,"Устройство ниши из гипсокартона","м.пог",319,null,""]
[null,"Устройство откосов из \"панелита\"","м.пог",232,null,""]
[null,"Утепление стен","м.кв",87,null,""]
[null,"Шпатлевка гипсокартона в 1 слой","м.кв",87,null,""]
[null,"Шпатлевка откосов (шириной до 400 мм) в 1 слой","м.пог",121.8,null,""]
[null,"Шпатлевка стен (3 раза, включая финишную шпатлевку типа 'Шитрок')","м.кв",307.39999999999998,null,""]
[null,"Шпатлевка стен финишная (декоративная)","м.кв",174,null,""]
[null,null,null,null,null,""]
[null,null,null,null,null,""]
[null,null,null,null,null,""]
[null,null,null,null,null,""]
[null,null,null,null,null,""]
[null,null,null,null,null,""]
[null,null,null,null,null,""]
[null,null,null,null,null,""]
[null,null,null,null,null,""]
[null,null,null,null,null,""]
[null,null,null,null,null,""]
[null,null,null,null,null,""]
[null,null,null,null,null,""]
[null,null,null,null,null,""]
[null,null,null,null,null,""]
[null,null,null,null,null,""]
[null,null,null,null,null,""]
[null,null,null,null,null,""]
[null,null,null,null,null,{"$f":"IF((E199*D199)=0,\"\",(E199*D199))","v":""}]
[null,null,null,null,null,""]
[null,null,null,null,null,""]
[null,"============================================"]
[null,"Отделочные работы - плиточные работы",null,null,"Итого:",{"$f":"SUM(F204:F233)","v":5800}]
[null,"Декоративная обработка швов","м.кв",43.5,null,""]
[null,"Изготовление ревизий на магнитном креплении","шт",696,null,""]
[null,"Облицовка стен натуральным камнем","м.кв",1160,null,""]
[null,"Облицовка стен керамической плиткой","м.кв",522,null,""]
[null,"Облицовка пола керамогранитом","м.кв",632.20000000000005,null,""]
[null,"Облицовка стен мозаикой","м.кв",684.4,null,""]
[null,"Облицовка откосов, полуколонн керамической плиткой","м.кв",522,null,""]
[null,"Облицовка пола камнем натуральным","м.кв",1160,null,""]
[null,"Облицовка пола керамической плиткой","м.кв",522,null,""]
[null,"Облицовка пола керамогранитом","м.кв",632.20000000000005,null,""]
[null,"Облицовка пола мозаикой","м.кв",609,null,""]
[null,"Сверление отверстий в керамической плитке, керамограните","шт",72.5,null,""]
[null,"Устройство декоративного экрана ванны","шт",1160,5,5800]
[null,"Установка бордюра, плинтуса керамического","м.пог",261,null,""]
[null,"Установка триммеров","м.пог",63.8,null,""]
[null,null,null,null,null,""]
[null,null,null,null,null,""]
[null,null,null,null,null,""]
[null,null,null,null,null,""]
[null,null,null,null,null,""]
[null,null,null,null,null,""]
[null,null,null,null,null,""]
[null,null,null,null,null,""]
[null,null,null,null,null,""]
[null,null,null,null,null,""]
[null,null,null,null,null,""]
[null,null,null,null,null,""]
[null,null,null,null,null,""]
[null,null,null,null,null,""]
[null,null,null,null,null,""]
[null,"============================================"]
[null,"Отделочные работы - полы",null,null,"Итого:",{"$f":"SUM(F236:F265)","v":0}]
[null,"Настилка подложки под ламинат, паркетную доску","м.кв",29,null,""]
[null,"Настилка фанеры на пол под линолеум, паркет, ламинат","м.кв",188.5,null,""]
[null,"Окраска плинтуса, покрытие лаком","м.пог",43.5,null,""]
[null,"Очистка поверхности от наплывов бетонных","м.кв",66.7,null,""]
[null,"Покрытие паркета лаком","м.кв",87,null,""]
[null,"Укладка художественного паркета","м.кв",725,null,""]
[null,"Установка декоративных порогов","м.пог",87,null,""]
[null,"Устройство плинтуса деревянного","м.пог",101.5,null,""]
[null,"Устройство пола из коммерческого линолеума","м.кв",261,null,""]
[null,"Устройство пола из коммерческого линолеума с изготовлением рисунка","м.кв",319,null,""]
[null,"Устройство пола из ковролина, линолеума","м.кв",203,null,""]
[null,"Устройство пола из ламината на клею","м.кв",290,null,""]
[null,"Устройство пола из ламината с замком","м.кв",261,null,""]
[null,"Устройство пола из паркетной доски","м.кв",435,null,""]
[null,"Устройство пола из паркета “шитового”","м.кв",493,null,""]
[null,"Устройство пола из паркета “штучного”","м.кв",580,null,""]
[null,"Устройство тепло звукоизоляции пола","м.кв",72.5,null,""]
[null,"Циклёвка паркета","м.кв",246.5,null,""]
[null,"Шпатлевка паркетных полов","м.кв",101.5,null,""]
[null,null,null,null,null,""]
[null,null,null,null,null,""]
[null,null,null,null,null,""]
[null,null,null,null,null,""]
[null,null,null,null,null,""]
[null,null,null,null,null,""]
[null,null,null,null,null,""]
[null,null,null,null,null,""]
[null,null,null,null,null,{"$f":"IF((E263*D263)=0,\"\",(E263*D263))","v":""}]
[null,null,null,null,null,""]
[null,null,null,null,null,""]
[null,"============================================"]
[null,"Столярные работы",null,null,"Итого:",{"$f":"SUM(F268:F297)","v":0}]
[null,"Врезка замков","шт",580,null,""]
[null,"Навеска дверных полотен (с врезанием петель)","шт",1015,null,""]
[null,"Ремонт дверей, окон, подоконников (косметический)","м.пог",319,null,""]
[null,"Установка готовых арок (стандартных)","шт",1160,null,""]
[null,"Установка дверных блоков (комплект)","шт",1450,null,""]
[null,"Установка доборов на дверь","м.пог",145,null,""]
[null,"Установка наличника","м.пог",87,null,""]
[null,"Установка ограничителя двери","шт",174,null,""]
[null,"Установка оконных блоков (без демонтажа)","шт",1450,null,""]
[null,"Установка подоконников (без демонтажа)","шт",725,null,""]
[null,"Установка раздвижных дверей","шт",1740,null,""]
[null,"Установка фурнитуры","шт",145,null,""]
[null,"Устройство антресоли","шт",1740,null,""]
[null,"Устройство шкафа из ГКЛ с подсветкой (с покраской)","шт",1015,null,""]
[null,"Устройство шкафа из ГКЛ без подсветки (с покраской)","шт",725,null,""]
[null,null,null,null,null,""]
[null,null,null,null,null,""]
[null,null,null,null,null,""]
[null,null,null,null,null,""]
[null,null,null,null,null,""]
[null,null,null,null,null,""]
[null,null,null,null,null,""]
[null,null,null,null,null,""]
[null,null,null,null,null,""]
[null,null,null,null,null,""]
[null,null,null,null,null,""]
[null,null,null,null,null,""]
[null,null,null,null,null,""]
[null,null,null,null,null,""]
[null,null,null,null,null,""]
[null,"============================================"]
[null,"Сантехнические работы",null,null,"Итого:",{"$f":"SUM(F300:F349)","v":0}]
[null,"Врезка в действующие сети","шт",1015,null,""]
[null,"Замена трубопроводов открытых 1/2 ” - 3/4”","м.пог",217.5,null,""]
[null,"Замена трубопроводов открытых ПВХ 40-100 мм","м.п",246.5,null,""]
[null,"Комплексная разводка водоснабжения и канализации санузла","комп.",5800,null,""]
[null,"Комплексная разводка труб канализации и водопровода в санузле","точка",1450,null,""]
[null,"Монтаж запорной арматуры","шт",159.5,null,""]
[null,"Монтаж и подключение ванны без гидромассажа","шт",2465,null,""]
[null,"Монтаж и подключение ванны с гидромассажем","шт",4350,null,""]
[null,"Монтаж и подключение водонагревателя накопительного","шт",1305,null,""]
[null,"Монтаж и подключение водонагревателя электрического поточного","шт",1015,null,""]
[null,"Монтаж и подключение душевой кабины","шт",4495,null,""]
[null,"Монтаж и подключение полотенцесушителя (без сварочных работ)","шт",1160,null,""]
[null,"Монтаж и подключение радиаторов отопления","шт",2030,null,""]
[null,"Монтаж и подключение редукторов","шт",304,null,""]
[null,"Монтаж и подключение стиральной машины","шт",739.5,null,""]
[null,"Монтаж и подключение смесителя","шт",609,null,""]
[null,"Монтаж и подключение умывальника","шт",1015,null,""]
[null,"Монтаж и подключение умывальника с мебелью (\"Мойдодыр\")","шт",1740,null,""]
[null,"Монтаж и подключение унитаза/биде","шт",1305,null,""]
[null,"Монтаж и подключение фильтров грубой очистки","шт",188.5,null,""]
[null,"Монтаж и подключение фильтров тонкой очистки","шт",580,null,""]
[null,"Монтаж трубопровода 1/2\"-3/4\"","м.пог",101.5,null,""]
[null,"Монтаж трубопровода ПВХ 40-100 мм","м.пог",130.5,null,""]
[null,"Навеска зеркал","шт",435,null,""]
[null,"Установка аксессуаров","шт",159.5,null,""]
[null,"Устройство штробы (под трубу 1/2\"-3/4\") в бетоне","м.пог",145,null,""]
[null,"Устройство штробы (под трубу 40-100 мм) в бетоне","м.пог",203,null,""]
[null,"Устройство штробы (под трубу 1/2\"-3/4\") в кирпиче","м.пог",116,null,{"$f":"IF((E327*D327)=0,\"\",(E327*D327))","v":""}]
[null,"Устройство штробы (под трубу 40-100 мм) в кирпиче","м.пог",145,null,""]
[null,null,null,null,null,""]
[null,null,null,null,null,""]
[null,null,null,null,null,""]
[null,null,null,null,null,""]
[null,null,null,null,null,""]
[null,null,null,null,null,""]
[null,null,null,null,null,""]
[null,null,null,null,null,""]
[null,null,null,null,null,""]
[null,null,null,null,null,""]
[null,null,null,null,null,""]
[null,null,null,null,null,""]
[null,null,null,null,null,""]
[null,null,null,null,null,""]
[null,null,null,null,null,""]
[null,null,null,null,null,""]
[null,null,null,null,null,""]
[null,null,null,null,null,""]
[null,null,null,null,null,""]
[null,null,null,null,null,""]
[null,null,null,null,null,""]
[null,"============================================"]
[null,"Электромонтажные работы",null,null,"Итого:",{"$f":"SUM(F352:F401)","v":0}]
[null,"Заделка каналов (штроб) в бетоне, кирпиче","м.пог",43.5,null,""]
[null,"Измерения сигнально-блокировочные","шт",29,null,""]
[null,"Монтаж вентилятора","шт",348,null,""]
[null,"Монтаж и подключение люстры (стекло, хрусталь)","шт",870,null,""]
[null,"Монтаж и подключение стандартной люстры (с двойной коммутацией)","шт",580,null,""]
[null,"Монтаж и подключение стандартной люстры (с одинарной коммутацией)","шт",435,null,""]
[null,"Монтаж и подключение электроточки (для открытой проводки)","шт",145,null,""]
[null,"Монтаж и подключение электроточки (для скрытой проводки)","шт",203,null,""]
[null,"Монтаж и подключение светильников (точечных)","шт",174,null,""]
[null,"Монтаж и подключение светильников (люминисцентных)","шт",290,null,""]
[null,"Монтаж и подключение защитных автоматов","шт",217.5,null,""]
[null,"Монтаж и подключение автоматов УЗО","шт",435,null,""]
[null,"Монтаж и подключение понижающих трансформаторов","шт",203,null,""]
[null,"Прокладка винипластовых труб (лотков)","м.пог",23.2,null,""]
[null,"Прокладка электропроводки в готовых каналах/под штукатурку","м.пог",20.3,null,""]
[null,"Прокладка электропроводки в эл.коробах, гофре","м.пог",43.5,null,""]
[null,"Установка настенных светильников","шт",203,null,""]
[null,"Установка подрозетников, распределительных коробок в бетоне","шт",203,null,""]
[null,"Установка подрозетников, распределительных коробок в кирпиче","шт",145,null,""]
[null,"Установка подрозетников, распределительных коробок в фальш-стенах","шт",116,null,""]
[null,"Установка распределительного электрощитка","шт",870,null,""]
[null,"Установка уравнивантеля потенциалов","шт",284.2,null,""]
[null,"Установка промежуточных вводов/выводов","шт",290,null,""]
[null,"Устройство «теплого пола» (экранированного)","м.кв",333.5,null,""]
[null,"Устройство каналов (штроб) в бетоне","м.пог",174,null,""]
[null,"Устройство каналов (штроб) в кирпиче","м.пог",130.5,null,""]
[null,"Устройство ниши под распределительный электрощиток","шт",435,null,""]
[null,null,null,null,null,""]
[null,null,null,null,null,""]
[null,null,null,null,null,""]
[null,null,null,null,null,""]
[null,null,null,null,null,""]
[null,null,null,null,null,""]
[null,null,null,null,null,""]
[null,null,null,null,null,""]
[null,null,null,null,null,""]
[null,null,null,null,null,""]
[null,null,null,null,null,""]
[null,null,null,null,null,""]
[null,null,null,null,null,{"$f":"IF((E391*D391)=0,\"\",(E391*D391))","v":""}]
[null,null,null,null,null,""]
[null,null,null,null,null,""]
[null,null,null,null,null,""]
[null,null,null,null,null,""]
[null,null,null,null,null,""]
[null,null,null,null,null,""]
[null,null,null,null,null,""]
[null,null,null,null,null,""]
[null,null,null,null,null,""]
[null,null,null,null,null,""]
[null,"============================================"]
[null,"Наружные работы",null,null,"Итого:",{"$f":"SUM(F404:F432)","v":0}]
[null,"Ландшафтные работы (асфальт, тротуарная плитка, газоны)","м.кв",493,null,""]
[null,"Монолитные работы (включая вязку арматуры)","м.куб",1160,null,""]
[null,"Окраска фасада по шпатлевке","м.кв",110.2,null,""]
[null,"Разработка грунта","м.куб",1450,null,""]
[null,"Кладка кирпичная черновая","м.куб",1160,null,""]
[null,"Кладка кирпичная лицевая","м.кв",522,null,""]
[null,"Кладка пеноблоков","м.куб",1015,null,""]
[null,"Установка водостоков","м.пог",203,null,""]
[null,"Установка опалубки","м.кв",232,null,""]
[null,"Устройство кровли из металлочерепицы","м.кв",261,null,""]
[null,"Устройство кровли из других материалов","м.кв",261,null,""]
[null,"Штукатурка фасада","м.кв",290,null,""]
[null,"Шпатлевка фасада","м.кв",145,null,""]
[null,null,null,null,null,""]
[null,null,null,null,null,""]
[null,null,null,null,null,""]
[null,null,null,null,null,""]
[null,null,null,null,null,""]
[null,null,null,null,null,""]
[null,null,null,null,null,""]
[null,null,null,null,null,""]
[null,null,null,null,null,""]
[null,null,null,null,null,""]
[null,null,null,null,null,""]
[null,null,null,null,null,""]
[null,null,null,null,null,""]
[null,null,null,null,null,""]
[null,null,null,null,null,""]
[null,null,null,null,null,""]
[null,"============================================"]
[null," Монтажные работы по инсталяции локальных сетей",null,null,"Итого:",{"$f":"SUM(F435:F493)","v":0}]
[null,"Жгутирование кабеля","м.пог",12875,null,""]
[null,"Укладка жгутированного кабеля над фальш-потолком","м.пог",20.3,null,""]
[null,"Укладка кабеля в короба","м.пог",14.5,null,""]
[null,"Укладка кабеля в короба высота > 2 м","м.пог",17.399999999999999,null,""]
[null,"Укладка кабеля в лотки высота > 2 м","м.пог",17.399999999999999,null,""]
[null,"Укладка кабеля в межэтажный канал","м.пог",46.4,null,""]
[null,"Укладка кабеля в трубе до 3 м","м.пог",23.2,null,""]
[null,"Укладка кабеля в трубе от 3 м","м.пог",29,null,""]
[null,"Укладка кабеля на стяжки","м.пог",20.3,null,""]
[null,"Укладка кабеля под фальш-пол","м.пог",20.3,null,""]
[null,"Демонтаж и отключение розетки (RJ-11, RJ-45, BNC)","шт",58,null,""]
[null,"Маркировка розеток и портов (1 розетка, 1 порт кросса, 1 разъем)","шт",29342,null,""]
[null,"Монтаж розетки в коробке для полых и капитальных стен (RJ-11, RJ-45, BNC)","шт",72.5,null,""]
[null,"Монтаж розетки в короб (RJ-11, RJ-45, BNC)","шт",87,null,""]
[null,"Монтаж розетки на стену","шт",116,null,""]
[null,"Обжим коннектора (RJ-11, RJ-45, BNC)","шт",43.5,null,""]
[null,"Подключение розетки категории \"5\"","шт",101.5,null,""]
[null,"Подключение телефонной розетки","шт",29,null,""]
[null,"Кроссирование кросс-панели (тип 110)","шт",87,null,""]
[null,"Кроссирование кросс-панели (тип 66)","шт",87,null,""]
[null,"Кроссирование патч-панели (обжим, разделка кабеля, жгутирование)","шт",87,null,{"$f":"IF((E455*D455)=0,\"\",(E455*D455))","v":""}]
[null,"Монтаж кронштейна 19\" на стену","шт",725,null,""]
[null,"Монтаж кросс-панели в шкаф (стойку)","шт",435,null,""]
[null,"Монтаж панели питания в шкаф (стойку)","шт",290,null,""]
[null,"Монтаж патч-панели в шкаф (стойку)","шт",435,null,""]
[null,"Монтаж стойки 45U","шт",1015,null,""]
[null,"Монтаж шкафа 6U","шт",1015,null,""]
[null,"Монтаж шкафа 9U","шт",1305,null,""]
[null,"Монтаж шкафа 12U","шт",1450,null,""]
[null,"Монтаж шкафа 45U","шт",1595,null,""]
[null,"Крепление толстых коробов на бетонные и кирпичные стены","м.пог",145,null,""]
[null,"Крепление толстых коробов на бетонные и кирпичные стены высота > 2 м","м.пог",174,null,""]
[null,"Крепление толстых коробов на стену из легких материалов","м.пог",87,null,""]
[null,"Крепление толстых коробов на стену из легких материалов высота > 2 м","м.пог",116,null,""]
[null,"Крепление тонких коробов (< 60 мм) на бетонные и кирпичные стены","м.пог",116,null,""]
[null,"Крепление тонких коробов (< 60 мм) на бетонные и кирпичные стены высота > 2 м","м.пог",145,null,""]
[null,"Крепление тонких коробов (< 60 мм) на стену из легких материалов","м.пог",58,null,""]
[null,"Крепление тонких коробов (< 60 мм) на стену из легких материалов высота > 2 м","м.пог",72.5,null,""]
[null,"Крепление трубы ПВХ за фальш-потолком","м.пог",58,null,""]
[null,"Крепление трубы ПВХ на стяжки","м.пог",58,null,""]
[null,"Разборка и сборка установленных коробов","м.пог",58,null,""]
[null,"Разборка и сборка установленных металлических коробов","м.пог",174,null,""]
[null,"Укладка трубы ПВХ внутри полых стен","м.пог",58,null,""]
[null,null,null,null,null,""]
[null,null,null,null,null,""]
[null,null,null,null,null,""]
[null,null,null,null,null,""]
[null,null,null,null,null,""]
[null,null,null,null,null,""]
[null,null,null,null,null,""]
[null,null,null,null,null,""]
[null,null,null,null,null,""]
[null,null,null,null,null,""]
[null,null,null,null,null,""]
[null,null,null,null,null,""]
[null,null,null,null,null,""]
[null,null,null,null,null,""]
[null,null,null,null,null,""]
[null,null,null,null,null,""]
[null,"============================================"]
[null,"Дополнительные работы",null,null,"Итого:",{"$f":"SUM(F496:F526)","v":0}]
[null,"Вывоз строительного мусора","бункер",1856,null,""]
[null,"Выезд специалиста для обследования объекта и коммерческого предложения","-",0,null,""]
[null,"Вынос и погрузка мусора","бункер",1160,null,""]
[null,"Отключение стояка","шт",435,null,""]
[null,"Погрузка-разгрузка материалов","м.куб",522,null,""]
[null,"Подготовка сметной документации","-",0,null,""]
[null,"Подъем груза на этаж","тн.",0,null,""]
[null,"Составление проекта","-",0,null,""]
[null,"Транспортные расходы","поездка",1000.5,null,""]
[null,null,null,null,null,""]
[null,null,null,null,null,""]
[null,null,null,null,null,""]
[null,null,null,null,null,""]
[null,null,null,null,null,""]
[null,null,null,null,null,""]
[null,null,null,null,null,""]
[null,null,null,null,null,""]
[null,null,null,null,null,""]
[null,null,null,null,null,""]
[null,null,null,null,null,""]
[null,null,null,null,null,""]
[null,null,null,null,null,""]
[null,null,null,null,null,""]
[null,null,null,null,null,{"$f":"IF((E519*D519)=0,\"\",(E519*D519))","v":""}]
[null,null,null,null,null,""]
[null,null,null,null,null,""]
[null,null,null,null,null,""]
[null,null,null,null,null,""]
[null,null,null,null,null,""]
[null,null,null,null,null,""]
[null,null,null,null,null,""]
[null,"============================================"]
[null," Ландшафтный дизайн",null,null,"Итого:",{"$f":"SUM(F529:F588)","v":0}]
[null,"Выезд специалиста на объект, для определения объема работ","-",870,null,""]
[null,"Детальный план цветников","м.кв",58,null,""]
[null,"Конструктивные чертежи подпорных стенок и дорожек","экземп.",580,null,""]
[null,"Проектные работы","100 м.кв",870,null,""]
[null,"Проект системы дренажа","100 м.кв",0,null,""]
[null,"Проект системы освещения","100 м.кв",0,null,""]
[null,"Проект водоемов, ручьев, каскадов","100 м.кв",0,null,""]
[null,"Проект системы полива","100 м.кв",0,null,""]
[null,"Топографическая съемка с последующим составлением плана","100 м.кв",290,null,""]
[null,"Газон обыкновенный","м.кв",145,null,""]
[null,"Газон садово-парковый","м.кв",232,null,""]
[null,"Газон специальный (на склонах усиленный)","м.кв",580,null,""]
[null,"Альпинарии, рокарии (стоимость зависит от вида величены применяемых материалов)","м.кв",5800,null,""]
[null,"Устройство водопадов, каскадов","м.кв",8700,null,""]
[null,"Устройство декоративного водоема (пленочного)","м.кв",6960,null,""]
[null,"Устройство декоративного водоема (бетонного)","м.кв",8700,null,""]
[null,"Гранитная брусчатка, мраморная плитка","м.кв",1450,null,""]
[null,"Установка бордюрного камня","м.пог",290,null,""]
[null,"Устройство дорожек на бетонное основание","м.кв",1160,null,""]
[null,"Устройство дорожек на песчаном основании","м.кв",406,null,""]
[null,"Устройство дорожек на сухую смесь","м.кв",580,null,""]
[null,"Устройство розариев","м.кв",1740,null,""]
[null,"Устройство цветников из однолетников","м.кв",1160,null,""]
[null,"Завоз грунта","8 м.куб",4350,null,""]
[null,"Корчевка и удаление пней","шт",1450,null,""]
[null,"Посадка декоративных, плодовых деревьев и кустарников","-",0,null,""]
[null,"Рубка деревьев с разделкой","шт",870,null,""]
[null,"Уход за садом (выезд специалиста, время работы 6 часов)","100 м.кв",435,null,""]
[null,"Формовочная обрезка деревьев","шт",1450,null,""]
[null,"Формовочная обрезка кустарников","шт",145,null,""]
[null,"Закладка фундамента","м.куб",2900,null,""]
[null,"Кладка из натурального камня","м.куб",5800,null,""]
[null,"Кладка из кирпича","м.куб",4640,null,""]
[null,"Облицовка натуральным камнем","м.кв",870,null,""]
[null,"Подземная прокладка кабеля освещения","м.пог",290,null,""]
[null,"Установка светильников","шт",1450,null,""]
[null,"Легкий грунт (песок, супесь) высотой до 1 м","м.пог",725,null,""]
[null,"Устройство дренажа","м.пог",0,null,""]
[null,"Устройство систем полива","м.пог",0,null,""]
[null,"Дренажный колодец, без колец глубиной 2 м","шт",7250,null,""]
[null,"Зимние сады (по договоренности)","-",0,null,""]
[null,"Оформление интерьеров (по договоренности)","-",0,null,""]
[null,"Оформление летних кафе (по договоренности)","-",0,null,""]
[null,null,null,null,null,{"$f":"IF((E572*D572)=0,\"\",(E572*D572))","v":""}]
[null,null,null,null,null,""]
[null,null,null,null,null,""]
[null,null,null,null,null,""]
[null,null,null,null,null,""]
[null,null,null,null,null,""]
[null,null,null,null,null,""]
[null,null,null,null,null,""]
[null,null,null,null,null,""]
[null,null,null,null,null,""]
[null,null,null,null,null,""]
[null,null,null,null,null,""]
[null,null,null,null,null,""]
[null,null,null,null,null,""]
[null,null,null,null,null,""]
[null,null,null,null,null,""]
[null,null,null,null,null,""]
[null,null,null,null,null,""]
[null,"============================================"]

{"sheet":"На печать","index":1,"n_rows":0,"n_cols":0,"rows_kept":0,"cut":false,"hidden":false,"merged":[]}

{"sheet":"Материал","index":2,"n_rows":336,"n_cols":6,"rows_kept":336,"cut":false,"hidden":false,"merged":[]}
["№ п\\п","Наименование материала","Ед. изм","Стоимость за ед.","Кол-во","Сумма"]
[1,null,null,null,null,{"$f":"IF((E2*D2)=0,\"\",(E2*D2))","v":""}]
[2,null,null,null,null,{"$f":"IF((E3*D3)=0,\"\",(E3*D3))","v":""}]
[3,null,null,null,null,""]
[4,null,null,null,null,""]
[5,null,null,null,null,""]
[6,null,null,null,null,""]
[7,null,null,null,null,""]
[8,null,null,null,null,""]
[9,null,null,null,null,""]
[10,null,null,null,null,""]
[11,null,null,null,null,""]
[12,null,null,null,null,""]
[13,null,null,null,null,""]
[14,null,null,null,null,""]
[15,null,null,null,null,""]
[16,null,null,null,null,""]
[17,null,null,null,null,""]
[18,null,null,null,null,""]
[19,null,null,null,null,""]
[20,null,null,null,null,""]
[21,null,null,null,null,""]
[22,null,null,null,null,""]
[23,null,null,null,null,""]
[24,null,null,null,null,""]
[25,null,null,null,null,""]
[26,null,null,null,null,""]
[27,null,null,null,null,""]
[28,null,null,null,null,""]
[29,null,null,null,null,""]
[30,null,null,null,null,""]
[31,null,null,null,null,""]
[32,null,null,null,null,""]
[33,null,null,null,null,""]
[34,null,null,null,null,""]
[35,null,null,null,null,""]
[36,null,null,null,null,""]
[37,null,null,null,null,""]
[38,null,null,null,null,""]
[39,null,null,null,null,""]
[40,null,null,null,null,""]
[41,null,null,null,null,""]
[42,null,null,null,null,""]
[43,null,null,null,null,""]
[44,null,null,null,null,""]
[45,null,null,null,null,""]
[46,null,null,null,null,""]
[47,null,null,null,null,""]
[48,null,null,null,null,""]
[49,null,null,null,null,""]
[50,null,null,null,null,""]
[51,null,null,null,null,""]
[52,null,null,null,null,""]
[53,null,null,null,null,""]
[54,null,null,null,null,""]
[55,null,null,null,null,""]
[56,null,null,null,null,""]
[57,null,null,null,null,""]
[58,null,null,null,null,""]
[59,null,null,null,null,""]
[60,null,null,null,null,""]
[61,null,null,null,null,""]
[62,null,null,null,null,""]
[63,null,null,null,null,""]
[64,null,null,null,null,""]
[null,null,null,null,"Итого:",{"$f":"SUM(F2:F65)","v":0}]
["№ п\\п","Наименование материала","Ед. изм","Стоимость за ед.","Кол-во","Сумма"]
[65,null,null,null,null,{"$f":"IF((E68*D68)=0,\"\",(E68*D68))","v":""}]
[66,null,null,null,null,""]
[67,null,null,null,null,""]
[68,null,null,null,null,""]
[69,null,null,null,null,""]
[70,null,null,null,null,""]
[71,null,null,null,null,""]
[72,null,null,null,null,""]
[73,null,null,null,null,""]
[74,null,null,null,null,""]
[75,null,null,null,null,""]
[76,null,null,null,null,""]
[77,null,null,null,null,""]
[78,null,null,null,null,""]
[79,null,null,null,null,""]
[80,null,null,null,null,""]
[81,null,null,null,null,""]
[82,null,null,null,null,""]
[83,null,null,null,null,""]
[84,null,null,null,null,""]
[85,null,null,null,null,""]
[86,null,null,null,null,""]
[87,null,null,null,null,""]
[88,null,null,null,null,""]
[89,null,null,null,null,""]
[90,null,null,null,null,""]
[91,null,null,null,null,""]
[92,null,null,null,null,""]
[93,null,null,null,null,""]
[94,null,null,null,null,""]
[95,null,null,null,null,""]
[96,null,null,null,null,""]
[97,null,null,null,null,""]
[98,null,null,null,null,""]
[99,null,null,null,null,""]
[100,null,null,null,null,""]
[101,null,null,null,null,""]
[102,null,null,null,null,""]
[103,null,null,null,null,""]
[104,null,null,null,null,""]
[105,null,null,null,null,""]
[106,null,null,null,null,""]
[107,null,null,null,null,""]
[108,null,null,null,null,""]
[109,null,null,null,null,""]
[110,null,null,null,null,""]
[111,null,null,null,null,""]
[112,null,null,null,null,""]
[113,null,null,null,null,""]
[114,null,null,null,null,""]
[115,null,null,null,null,""]
[116,null,null,null,null,""]
[117,null,null,null,null,""]
[118,null,null,null,null,""]
[119,null,null,null,null,""]
[120,null,null,null,null,""]
[121,null,null,null,null,""]
[122,null,null,null,null,""]
[123,null,null,null,null,""]
[124,null,null,null,null,""]
[125,null,null,null,null,""]
[126,null,null,null,null,""]
[127,null,null,null,null,""]
[128,null,null,null,null,""]
[129,null,null,null,null,{"$f":"IF((E132*D132)=0,\"\",(E132*D132))","v":""}]
[130,null,null,null,null,""]
[null,null,null,null,"Итого:",{"$f":"SUM(F68:F133)","v":0}]
["№ п\\п","Наименование материала","Ед. изм","Стоимость за ед.","Кол-во","Сумма"]
[131,null,null,null,null,{"$f":"IF((E136*D136)=0,\"\",(E136*D136))","v":""}]
[132,null,null,null,null,""]
[133,null,null,null,null,""]
[134,null,null,null,null,""]
[135,null,null,null,null,""]
[136,null,null,null,null,""]
[137,null,null,null,null,""]
[138,null,null,null,null,""]
[139,null,null,null,null,""]
[140,null,null,null,null,""]
[141,null,null,null,null,""]
[142,null,null,null,null,""]
[143,null,null,null,null,""]
[144,null,null,null,null,""]
[145,null,null,null,null,""]
[146,null,null,null,null,""]
[147,null,null,null,null,""]
[148,null,null,null,null,""]
[149,null,null,null,null,""]
[150,null,null,null,null,""]
[151,null,null,null,null,""]
[152,null,null,null,null,""]
[153,null,null,null,null,""]
[154,null,null,null,null,""]
[155,null,null,null,null,""]
[156,null,null,null,null,""]
[157,null,null,null,null,""]
[158,null,null,null,null,""]
[159,null,null,null,null,""]
[160,null,null,null,null,""]
[161,null,null,null,null,""]
[162,null,null,null,null,""]
[163,null,null,null,null,""]
[164,null,null,null,null,""]
[165,null,null,null,null,""]
[166,null,null,null,null,""]
[167,null,null,null,null,""]
[168,null,null,null,null,""]
[169,null,null,null,null,""]
[170,null,null,null,null,""]
[171,null,null,null,null,""]
[172,null,null,null,null,""]
[173,null,null,null,null,""]
[174,null,null,null,null,""]
[175,null,null,null,null,""]
[176,null,null,null,null,""]
[177,null,null,null,null,""]
[178,null,null,null,null,""]
[179,null,null,null,null,""]
[180,null,null,null,null,""]
[181,null,null,null,null,""]
[182,null,null,null,null,""]
[183,null,null,null,null,""]
[184,null,null,null,null,""]
[185,null,null,null,null,""]
[186,null,null,null,null,""]
[187,null,null,null,null,""]
[188,null,null,null,null,""]
[189,null,null,null,null,""]
[190,null,null,null,null,""]
[191,null,null,null,null,""]
[192,null,null,null,null,""]
[193,null,null,null,null,""]
[194,null,null,null,null,""]
[195,null,null,null,null,{"$f":"IF((E200*D200)=0,\"\",(E200*D200))","v":""}]
[196,null,null,null,null,""]
[null,null,null,null,"Итого:",{"$f":"SUM(F136:F201)","v":0}]
["№ п\\п","Наименование материала","Ед. изм","Стоимость за ед.","Кол-во","Сумма"]
[197,null,null,null,null,{"$f":"IF((E204*D204)=0,\"\",(E204*D204))","v":""}]
[198,null,null,null,null,""]
[199,null,null,null,null,""]
[200,null,null,null,null,""]
[201,null,null,null,null,""]
[202,null,null,null,null,""]
[203,null,null,null,null,""]
[204,null,null,null,null,""]
[205,null,null,null,null,""]
[206,null,null,null,null,""]
[207,null,null,null,null,""]
[208,null,null,null,null,""]
[209,null,null,null,null,""]
[210,null,null,null,null,""]
[211,null,null,null,null,""]
[212,null,null,null,null,""]
[213,null,null,null,null,""]
[214,null,null,null,null,""]
[215,null,null,null,null,""]
[216,null,null,null,null,""]
[217,null,null,null,null,""]
[218,null,null,null,null,""]
[219,null,null,null,null,""]
[220,null,null,null,null,""]
[221,null,null,null,null,""]
[222,null,null,null,null,""]
[223,null,null,null,null,""]
[224,null,null,null,null,""]
[225,null,null,null,null,""]
[226,null,null,null,null,""]
[227,null,null,null,null,""]
[228,null,null,null,null,""]
[229,null,null,null,null,""]
[230,null,null,null,null,""]
[231,null,null,null,null,""]
[232,null,null,null,null,""]
[233,null,null,null,null,""]
[234,null,null,null,null,""]
[235,null,null,null,null,""]
[236,null,null,null,null,""]
[237,null,null,null,null,""]
[238,null,null,null,null,""]
[239,null,null,null,null,""]
[240,null,null,null,null,""]
[241,null,null,null,null,""]
[242,null,null,null,null,""]
[243,null,null,null,null,""]
[244,null,null,null,null,""]
[245,null,null,null,null,""]
[246,null,null,null,null,""]
[247,null,null,null,null,""]
[248,null,null,null,null,""]
[249,null,null,null,null,""]
[250,null,null,null,null,""]
[251,null,null,null,null,""]
[252,null,null,null,null,""]
[253,null,null,null,null,""]
[254,null,null,null,null,""]
[255,null,null,null,null,""]
[256,null,null,null,null,""]
[257,null,null,null,null,""]
[258,null,null,null,null,""]
[259,null,null,null,null,""]
[260,null,null,null,null,""]
[261,null,null,null,null,{"$f":"IF((E268*D268)=0,\"\",(E268*D268))","v":""}]
[262,null,null,null,null,""]
[null,null,null,null,"Итого:",{"$f":"SUM(F204:F269)","v":0}]
["№ п\\п","Наименование материала","Ед. изм","Стоимость за ед.","Кол-во","Сумма"]
[263,null,null,null,null,{"$f":"IF((E272*D272)=0,\"\",(E272*D272))","v":""}]
[264,null,null,null,null,""]
[265,null,null,null,null,""]
[266,null,null,null,null,""]
[267,null,null,null,null,""]
[268,null,null,null,null,""]
[269,null,null,null,null,""]
[270,null,null,null,null,""]
[271,null,null,null,null,""]
[272,null,null,null,null,""]
[273,null,null,null,null,""]
[274,null,null,null,null,""]
[275,null,null,null,null,""]
[276,null,null,null,null,""]
[277,null,null,null,null,""]
[278,null,null,null,null,""]
[279,null,null,null,null,""]
[280,null,null,null,null,""]
[281,null,null,null,null,""]
[282,null,null,null,null,""]
[283,null,null,null,null,""]
[284,null,null,null,null,""]
[285,null,null,null,null,""]
[286,null,null,null,null,""]
[287,null,null,null,null,""]
[288,null,null,null,null,""]
[289,null,null,null,null,""]
[290,null,null,null,null,""]
[291,null,null,null,null,""]
[292,null,null,null,null,""]
[293,null,null,null,null,""]
[294,null,null,null,null,""]
[295,null,null,null,null,""]
[296,null,null,null,null,""]
[297,null,null,null,null,""]
[298,null,null,null,null,""]
[299,null,null,null,null,""]
[300,null,null,null,null,""]
[301,null,null,null,null,""]
[302,null,null,null,null,""]
[303,null,null,null,null,""]
[304,null,null,null,null,""]
[305,null,null,null,null,""]
[306,null,null,null,null,""]
[307,null,null,null,null,""]
[308,null,null,null,null,""]
[309,null,null,null,null,""]
[310,null,null,null,null,""]
[311,null,null,null,null,""]
[312,null,null,null,null,""]
[313,null,null,null,null,""]
[314,null,null,null,null,""]
[315,null,null,null,null,""]
[316,null,null,null,null,""]
[317,null,null,null,null,""]
[318,null,null,null,null,""]
[319,null,null,null,null,""]
[320,null,null,null,null,""]
[321,null,null,null,null,""]
[322,null,null,null,null,""]
[323,null,null,null,null,""]
[324,null,null,null,null,""]
[325,null,null,null,null,""]
[326,null,null,null,null,""]
[null,null,null,null,"Итого:",{"$f":"SUM(F272:F335)","v":0}]